{"text_format":"1","workbook":"xlsx","n_sheets":10,"sheets":["copertina","1. Anagrafica","2A.Descrizione Iniziativa","2B. Proposta prog. e criteri","3. Conto economico previsionale","4.Programma di Investimenti L1","4.BProgR&S&I","5.Determinazione contributo","6.Piano di copertura","7.Criteri  di valutazione"],"not_rendered":{"charts":0,"images":1,"macros":1,"external_links":0,"defined_names":18,"comments":0,"pivot_tables":0},"unopened":[],"bounds":{"document_bytes":16777216,"sheet_cells":100000,"rows_first":2000,"rows_last":500,"rows_between":2000,"halvings":0,"cell_chars":16384,"cell_head_chars":4096},"cells_cut":0,"cells_raw":0,"read":"whole","date_system":"1900"}

{"sheet":"copertina","index":0,"n_rows":16,"n_cols":1,"rows_kept":16,"cut":false,"hidden":false,"merged":[[8,5,8,7],[12,0,12,12],[14,0,14,12],[15,0,15,12]]}
[]
[]
[]
[]
[]
[]
[]
[]
[]
[]
[]
[]
["Allegato 2 Formulario"]
[]
["PR CALABRIA FESR FSE 2021 – 2027\nOP1 - UNA CALABRIA PIÙ SMART\nPRIORITÀ 1 - RICERCA, INNOVAZIONE E COMPETITIVITÀ\n\nRSO1.3. Rafforzare la crescita sostenibile e la competitività delle PMI e la creazione di posti di lavoro nelle PMI, anche grazie agli investimenti produttivi\nAzione 1.3.1 Competitività del sistema produttivo regionale\n\nRSO1.1. Sviluppare e rafforzare le capacità di ricerca e di innovazione e l'introduzione di tecnologie avanzate\nAzione 1.1.1 del PR 21/27 Sostegno a progetti di attività di ricerca, sviluppo e innovazione, anche in collaborazione con organismi di ricerca, nelle Aree e nelle traiettorie prioritarie della S3\n\nFSC 21/27 \nArea Tematica 03 Competitività imprese – \nLinea intervento 03.01 Industria e servizi\n\nAVVISO PUBBLICO \n“FRI-Calabria - Fondo Regionale per il sostegno all'innovazione e ai settori strategici”"]
["La manomissione del presente file e delle formule in esso contenute determina l'inammissibilità della domanda di contributo"]

{"sheet":"1. Anagrafica","index":1,"n_rows":16,"n_cols":36,"rows_kept":16,"cut":false,"hidden":false,"merged":[[8,0,8,25],[0,0,0,25],[1,0,1,25],[2,0,2,25],[3,0,3,25],[4,0,4,25],[5,0,5,25],[6,0,6,25],[7,0,7,25],[14,0,14,25],[15,0,15,25],[13,0,13,25],[9,0,9,25],[10,0,10,25],[11,0,11,25],[12,0,12,25]]}
[" Anagrafica Soggetto Proponente",null,null,null,null,null,null,null,null,null,null,null,null,null,null,null,null,null,null,null,null,null,null,null,null,null,null,"Piccola Impresa",null,null,"a.1 realizzare nuove unità produttive",1,"Progetti di ricerca e sviluppo (R&S)",null,null,"Si"]
[null,null,null,null,null,null,null,null,null,null,null,null,null,null,null,null,null,null,null,null,null,null,null,null,null,null,null,"Media Impresa",null,null,"a.2 ampliare capacità di unità produttive esistenti",2,"Non previsti",null,null,"No"]
["Denominazione/Ragione Sociale",null,null,null,null,null,null,null,null,null,null,null,null,null,null,null,null,null,null,null,null,null,null,null,null,null,null,"Grande impresa",null,null,"a.3 divesificare la produzione di uno stabilimento",3]
[null,null,null,null,null,null,null,null,null,null,null,null,null,null,null,null,null,null,null,null,null,null,null,null,null,null,null,null,null,null,"a.4 apportare un cambiamento fondamentale del processo di  produzione",4]
["Forma giuridica",null,null,null,null,null,null,null,null,null,null,null,null,null,null,null,null,null,null,null,null,null,null,null,null,null,null,null,null,null,"a.5 acquisire un'unità produttiva esistente"]
[]
["Codice Fiscale"]
[]
["Dimensione impresa\n(da dichiarare sulla base dei criteri indicati nell’avviso)"]
["Piccola Impresa"]
["Intervento produttivo (obbligatorio - art 3.1.2 - Punto a) dell'avviso)"]
["a.1 realizzare nuove unità produttive"]
["Progetto Innovazione (facoltativo - art 3.1.2 - Punto b) dell'avviso)"]
["Progetti di ricerca e sviluppo (R&S)"]
["Progetto Sviluppo Attività Turistiche"]
["Si"]

{"sheet":"2A.Descrizione Iniziativa","index":2,"n_rows":6,"n_cols":1,"rows_kept":6,"cut":false,"hidden":false,"merged":[]}
[]
["2A.   Descrizione Impresa e Iniziativa"]
[]
["Descrizione dell’impresa: l’ambito di operatività, i cenni storici salienti, le esperienze professionali dell’imprenditore e del management aziendale.\nOve disponibili, Illustrazione dei principali dati aziendali relativi agli ultimi due esercizi consuntivi, finalizzata ad inquadrare la realtà imprenditoriale sotto il profilo dimensionale (trend di fatturato, numero di addetti, risultati di esercizio, ecc.). (MAX 15000 CARATTERI)"]
[]
["Descrizione dettagliata del programma di investimento da realizzare\nDescrizione delle ricadute occupazionali, delle ricadute economiche derivanti dalla realizzazione dell’investimento e illustrazione delle ipotesi di base utilizzate nell’elaborazione delle proiezioni, tenuto anche conto dei fabbisogni finanziari connessi all’intervento finanziario richiesto. \n (MAX 15000 CARATTERI)"]

{"sheet":"2B. Proposta prog. e criteri","index":3,"n_rows":16,"n_cols":1,"rows_kept":16,"cut":false,"hidden":false,"merged":[]}
["2B.   Presentazione della proposta progettuale"]
["A1- Capacità degli interventi di contribuire al perseguimento dei risultati attesi del Programma e delle finalità dell’Azione specifica e chiara esplicitazione degli obiettivi e delle finalità proposti"]
["CRITERIO A1.1 (fornire informazioni utili all'attribuzione del punteggio)"]
[]
["CRITERIO A1.2  (fornire informazioni utili all'attribuzione del punteggio)"]
[]
["B2 Qualità delle soluzioni organizzative e metodologiche individuate per la realizzazione degli interventi connesse al piano di lavoro, alla valutazione dei rischi, alla adeguatezza delle risorse attribuite alle singole componenti progettuali"]
["CRITERIO B2.1 (fornire informazioni utili all'attribuzione del punteggio)"]
[]
["C2 Grado di innovazione introdotte (in termini di processo, prodotto, assetti organizzativi e gestionali)"]
["CRITERIO C2.1 (fornire informazioni utili all'attribuzione del punteggio)"]
[]
["D2 Contributo alla transizione ecologica e digitale "]
["CRITERIO D2.1 (fornire informazioni utili all'attribuzione del punteggio)"]
[]
["CRITERIO D2.2 (fornire informazioni utili all'attribuzione del punteggio)"]

{"sheet":"3. Conto economico previsionale","index":4,"n_rows":32,"n_cols":5,"rows_kept":32,"cut":false,"hidden":false,"merged":[[0,0,0,4],[1,0,1,1]]}
["3. Conto economico previsionale dell'iniziativa"]
["DESCRIZIONE DELLE VOCI",null,"I anno*","II anno","III anno"]
["A","Valore della produzione:",{"$f":"SUM(C4:C8)","v":0},{"$f":"SUM(D4:D8)","v":0},0]
["A.1","Ricavi delle vendite e delle prestazioni"]
["A.2","Variazione delle rimanenze di prodotti in corso di lavorazione, semilavorati e finiti"]
["A.3","Variazione dei lavori in corso su ordinazione"]
["A.4","Incrementi di immobilizzazioni per lavori interni"]
["A.5","Altri ricavi e proventi"]
["B","Costi della produzione:",{"$f":"SUM(C10:C18)","v":0},{"$f":"SUM(D10:D18)","v":0},0]
["B.1","Materie prime, sussidiarie, di consumo e merci"]
["B.2","Servizi"]
["B.3","Godimento di beni di terzi"]
["B.4","Personale"]
["B.5","Ammortamenti e svalutazioni"]
["B.6","Variazione delle rimanenze di materie prime, sussidiarie, di consumo e merci"]
["B.7","Accantonamenti per rischi"]
["B.8","Altri accantonamenti"]
["B.9","Oneri diversi di gestione"]
[null,"Risultato della gestione caratteristica (A - B)",{"$f":"+C3-C9","v":0},{"$f":"+D3-D9","v":0},0]
["C","Proventi e oneri finanziari:",{"$f":"+C21+C22-C23","v":0},{"$f":"+D21+D22-D23","v":0},0]
["C.1","Proventi da partecipazioni"]
["C.2","Altri proventi finanziari"]
["C.3","Interessi e altri oneri finanziari"]
["D","Rettifica valore attività finanziarie:",{"$f":"+C25-C26","v":0},{"$f":"+D25-D26","v":0},0]
["D.1","Rivalutazioni"]
["D.2","Svalutazioni"]
["E","Proventi e oneri straordinari"]
[null,"Risultato prima delle imposte (A – B + C + D + E)",{"$f":"+C19+C20+C24+C27","v":0},{"$f":"+D19+D20+D24+D27","v":0},0]
[null,"Imposte sul reddito d’esercizio"]
[null,"Utile (perdita) dell’esercizio",{"$f":"+C28-C29","v":0},{"$f":"+D28-D29","v":0},0]
[]
[null,"per \"Anno 1\" si intende l'anno successivo a quello in cui si prevede di concludere il programma di investimenti"]

{"sheet":"4.Programma di Investimenti L1","index":5,"n_rows":130,"n_cols":7,"rows_kept":130,"cut":false,"hidden":false,"merged":[[78,4,129,4],[3,6,3,7],[0,0,0,3],[1,0,1,3],[4,4,21,4],[22,4,43,4]]}
["  Programma di investimenti Produttivi (deve essere minimo pari al 50% dell'investimento totale ammissibile"]
[" Elenco delle spese  (importi in euro e al netto dell’IVA)"]
["DESCRIZIONE DELLE SPESE","Il costo totale ammissibile non deve essere inferiore a € 750.000,00","Spese non ammissibili","Totale",null,{"$f":"B4+'4.BProgR&S&I'!D4","v":0}]
["TOTALE SPESE",{"$f":"B22+B44+B61+B78+B113+B130","v":0},{"$f":"C22+C44+C61+C78+C113+C130","v":0},{"$f":"B4+C4","v":0},null,{"$f":"IF(AND(F3>=750000,B4<=25000000),\"OK\", \"Il costo totale ammissibile non deve essere inferiore a € 750.000,00 e superiore a € 25.000.000,00 \")","v":"Il costo totale ammissibile non deve essere inferiore a € 750.000,00 e superiore a € 25.000.000,00 "}]
["b1)  Acquisto del suolo e sue sistemazioni (limite del 10% dell’investimento produttivo ammissibile )",null,null,null,0.1]
[null,null,null,{"$f":"SUM(B6:C6)","v":0},null,{"$f":"IF(AND(B6>0,OR(A6=\"\",B6=\"\")), \"Inserire voce di spesa e descrizione\",\"OK\")","v":"OK"}]
[null,null,null,{"$f":"SUM(B7:C7)","v":0},null,{"$f":"IF(AND(B7>0,OR(A7=\"\",B7=\"\")), \"Inserire voce di spesa e descrizione\",\"OK\")","v":"OK"}]
[null,null,null,0,null,{"$f":"IF(AND(B8>0,OR(A8=\"\",B8=\"\")), \"Inserire voce di spesa e descrizione\",\"OK\")","v":"OK"}]
[null,null,null,0,null,"OK"]
[null,null,null,0,null,"OK"]
[null,null,null,0,null,"OK"]
[null,null,null,0,null,"OK"]
[null,null,null,0,null,"OK"]
[null,null,null,0,null,"OK"]
[null,null,null,0,null,"OK"]
[null,null,null,0,null,"OK"]
[null,null,null,0,null,"OK"]
[null,null,null,0,null,"OK"]
[null,null,null,0,null,"OK"]
[null,null,null,0,null,"OK"]
[null,null,null,0,null,"OK"]
["Totale b1) ",{"$f":"SUM(B6:B21)","v":0},{"$f":"SUM(C6:C21)","v":0},{"$f":"SUM(B22:C22)","v":0},null,{"$f":"IF(B22=0,\"OK\",IF(((B22)/$B$4)<=E5,\"OK\",\"Esubero di spesa\"))","v":"OK"}]
["b2 + b3)  Opere murarie e assimilabili (incluso l’acquisto dell’immobile) comprese quelle impiantistiche (idriche, fognarie, sanitarie, elettriche, riscaldamento, condizionamento, infissi e serramenti, fibra ottica, e comunque ogni tipologia di bene/servizio che per la sua installazione, montaggio o esecuzione, presuppone la realizzazione di opere murarie correlate) (limite del 40% dell’investimento produttivo ammissibile)",null,null,null,{"$f":"IF('1. Anagrafica'!A16='1. Anagrafica'!AJ1,0.7,0.4)","v":0.7}]
[null,null,null,{"$f":"SUM(B24:C24)","v":0},null,{"$f":"IF(AND(B24>0,OR(A24=\"\",B24=\"\")), \"Inserire voce di spesa e descrizione\",\"OK\")","v":"OK"}]
[null,null,null,{"$f":"SUM(B25:C25)","v":0},null,"OK"]
[null,null,null,0,null,"OK"]
[null,null,null,0,null,"OK"]
[null,null,null,0,null,"OK"]
[null,null,null,0,null,"OK"]
[null,null,null,0,null,"OK"]
[null,null,null,0,null,"OK"]
[null,null,null,0,null,"OK"]
[null,null,null,0,null,"OK"]
[null,null,null,0,null,"OK"]
[null,null,null,0,null,"OK"]
[null,null,null,0,null,"OK"]
[null,null,null,0,null,"OK"]
[null,null,null,0,null,"OK"]
[null,null,null,0,null,"OK"]
[null,null,null,0,null,"OK"]
[null,null,null,0,null,"OK"]
[null,null,null,0,null,"OK"]
[null,null,null,0,null,"OK"]
["Totale b2+b3) ",{"$f":"SUM(B24:B43)","v":0},{"$f":"SUM(C24:C43)","v":0},0,null,{"$f":"IF(B44=0,\"OK\",IF(((B44)/$B$4)<=E23,\"OK\",\"Esubero di spesa\"))","v":"OK"}]
["a)  Macchinari, impianti e attrezzature varie"]
[null,null,null,{"$f":"SUM(B46:C46)","v":0},null,"OK"]
[null,null,null,0,null,"OK"]
[null,null,null,0,null,"OK"]
[null,null,null,0,null,"OK"]
[null,null,null,0,null,"OK"]
[null,null,null,0,null,"OK"]
[null,null,null,0,null,"OK"]
[null,null,null,0,null,"OK"]
[null,null,null,0,null,"OK"]
[null,null,null,0,null,"OK"]
[null,null,null,0,null,"OK"]
[null,null,null,0,null,"OK"]
[null,null,null,0,null,"OK"]
[null,null,null,0,null,"OK"]
[null,null,null,0,null,"OK"]
["Totale a) ",{"$f":"SUM(B46:B60)","v":0},{"$f":"SUM(C46:C60)","v":0},{"$f":"SUM(B61:C61)","v":0}]
["c)  Attivi immateriali: Programmi informatici,  Brevetti, licenze, know-how e conoscenze tecniche non brevettate"]
[null,null,null,{"$f":"SUM(B63:C63)","v":0},null,{"$f":"IF(AND(B63>0,OR(A63=\"\",B63=\"\")), \"Inserire voce di spesa e descrizione\",\"OK\")","v":"OK"}]
[null,null,null,{"$f":"SUM(B64:C64)","v":0},null,"OK"]
[null,null,null,0,null,"OK"]
[null,null,null,0,null,"OK"]
[null,null,null,0,null,"OK"]
[null,null,null,0,null,"OK"]
[null,null,null,0,null,"OK"]
[null,null,null,0,null,"OK"]
[null,null,null,0,null,"OK"]
[null,null,null,0,null,"OK"]
[null,null,null,0,null,"OK"]
[null,null,null,0,null,"OK"]
[null,null,null,0,null,"OK"]
[null,null,null,0,null,"OK"]
[null,null,null,0,null,"OK"]
["Totale c)",{"$f":"SUM(B63:B77)","v":0},{"$f":"SUM(C63:C77)","v":0},{"$f":"SUM(B78:C78)","v":0}]
["d) Studi fattibilità, Progettazioni ingegneristiche e direzione lavori, relazioni tecniche e perizie asseverate ((voci d+e limite del 4% dell'investimento produttivo  ammissibile)",null,null,null,0.04]
[null,null,null,{"$f":"SUM(B80:C80)","v":0},null,{"$f":"IF(AND(B80>0,OR(A80=\"\",B80=\"\")), \"Inserire voce di spesa e descrizione\",\"OK\")","v":"OK"}]
[null,null,null,0,null,{"$f":"IF(AND(B81>0,OR(A81=\"\",B81=\"\")), \"Inserire voce di spesa e descrizione\",\"OK\")","v":"OK"}]
[null,null,null,0,null,"OK"]
[null,null,null,0,null,"OK"]
[null,null,null,0,null,"OK"]
[null,null,null,0,null,"OK"]
[null,null,null,0,null,"OK"]
[null,null,null,0,null,"OK"]
[null,null,null,0,null,"OK"]
[null,null,null,0,null,"OK"]
[null,null,null,0,null,"OK"]
[null,null,null,0,null,"OK"]
[null,null,null,0,null,"OK"]
[null,null,null,0,null,"OK"]
[null,null,null,0,null,"OK"]
["Totale d)",{"$f":"SUM(B80:B94)","v":0},{"$f":"SUM(C80:C94)","v":0},{"$f":"SUM(B95:C95)","v":0},null,{"$f":"IF(AND(B95<>0,B130+B95>($E$79*$B$4)),\"Esubero di spesa\",\"OK\")","v":"OK"}]
["d2)  Studi di fattibilità tecnico-economica-finanziaria (voci d+e limite del 4% dell'investimento produttivo  ammissibile)",null,null,null,null,null,"togliere d2, magari coprire celle e correggere formula di d"]
[null,null,null,{"$f":"SUM(B97:C97)","v":0},null,{"$f":"IF(AND(B97>0,OR(A97=\"\",B97=\"\")), \"Inserire voce di spesa e descrizione\",\"OK\")","v":"OK"}]
[null,null,null,{"$f":"SUM(B98:C98)","v":0},null,{"$f":"IF(AND(B98>0,OR(A98=\"\",B98=\"\")), \"Inserire voce di spesa e descrizione\",\"OK\")","v":"OK"}]
[null,null,null,0,null,"OK"]
[null,null,null,0,null,"OK"]
[null,null,null,0,null,"OK"]
[null,null,null,0,null,"OK"]
[null,null,null,0,null,"OK"]
[null,null,null,0,null,"OK"]
[null,null,null,0,null,"OK"]
[null,null,null,0,null,"OK"]
[null,null,null,0,null,"OK"]
[null,null,null,0,null,"OK"]
[null,null,null,0,null,"OK"]
[null,null,null,0,null,"OK"]
[null,null,null,0,null,"OK"]
["Totale d2)",{"$f":"SUM(B97:B111)","v":0},{"$f":"SUM(C97:C111)","v":0},{"$f":"SUM(B112:C112)","v":0},null,{"$f":"IFERROR(IF(AND($B$4>1667000,B112/$B$4>=E96),\"Esubero di spesa\",IF(AND(B112>=0,B112<=50000,B112/$B$4<=E96),\"OK\",\"Esubero di spesa\")),\"\")","v":""}]
["Totale d) ",{"$f":"B95+B112","v":0},{"$f":"C95+C112","v":0},{"$f":"D95+D112","v":0}]
["e) Consulenza, solo per PMI (voci d+e limite del 4% dell'investimento produttivo  ammissibile)"]
[null,null,null,{"$f":"SUM(B115:C115)","v":0},null,{"$f":"IF(AND(B115>0,OR(A115=\"\",B115=\"\")), \"Inserire voce di spesa e descrizione\",\"OK\")","v":"OK"}]
[null,null,null,{"$f":"SUM(B116:C116)","v":0},null,{"$f":"IF(AND(B116>0,OR(A116=\"\",B116=\"\")), \"Inserire voce di spesa e descrizione\",\"OK\")","v":"OK"}]
[null,null,null,0,null,"OK"]
[null,null,null,0,null,"OK"]
[null,null,null,0,null,"OK"]
[null,null,null,0,null,"OK"]
[null,null,null,0,null,"OK"]
[null,null,null,0,null,"OK"]
[null,null,null,0,null,"OK"]
[null,null,null,0,null,"OK"]
[null,null,null,0,null,"OK"]
[null,null,null,0,null,"OK"]
[null,null,null,0,null,"OK"]
[null,null,null,0,null,"OK"]
[null,null,null,0,null,"OK"]
["Totale e)",{"$f":"SUM(B115:B129)","v":0},{"$f":"SUM(C115:C129)","v":0},{"$f":"SUM(B130:C130)","v":0},null,{"$f":"IF(AND(B130<>0,B130+B95>($E$79*$B$4)),\"Esubero di spesa\",\"OK\")","v":"OK"}]

{"sheet":"4.BProgR&S&I","index":6,"n_rows":92,"n_cols":8,"rows_kept":92,"cut":false,"hidden":false,"merged":[[0,0,0,5],[1,0,1,5],[20,6,86,6]]}
["  Progetto di Ricerca e Sviluppo (solo se abbinati a Investimenti Produttivi e solo se coerenti S3)"]
[" Elenco delle spese  (importi in euro e al netto dell’IVA)"]
["DESCRIZIONE DELLE SPESE",null,null,"Il costo totale ammissibile deve essere non superiore al 50% del totale investimento ammissibile","Spese non ammissibili","Totale",null,{"$f":"D4+'4.Programma di Investimenti L1'!B4","v":0}]
["TOTALE SPESE",null,null,{"$f":"D20+D87","v":0},{"$f":"E20+E87","v":0},0,null,{"$f":"IF(AND(H3>=750000,D4<=25000000),\"OK\", \"Il costo totale ammissibile non deve essere inferiore a € 750.000,00 \")","v":"Il costo totale ammissibile non deve essere inferiore a € 750.000,00 "}]
["a)  Progetto R&S :Spese personale (attività Ricerca Industriale )  ","Costo Oraro","N° Ore","Costo ammissibile"]
["spese di personale tipo A (Alto, per livelli dirigenziali",83,null,{"$f":"B6*C6","v":0},null,{"$f":"SUM(D6:E6)","v":0}]
["spese di personale tipo M (Medio, per livelli quadro)",47,null,{"$f":"B7*C7","v":0},null,{"$f":"SUM(D7:E7)","v":0}]
["spese di personale tipo B (Basso, per livelli di impiegato/operaio)",30,null,0,null,0]
["Totale a) R&S (RI)",null,null,{"$f":"SUM(D6:D8)","v":0},{"$f":"SUM(E6:E8)","v":0},{"$f":"SUM(D9:E9)","v":0}]
["a)  Progetto R&S :Spese personale (attività Sviluppo Sperimentale )","Costo Oraro","N° Ore","Costo ammissibile"]
["spese di personale tipo A (Alto, per livelli dirigenziali",83,null,{"$f":"B11*C11","v":0},null,{"$f":"D11+E11","v":0}]
["spese di personale tipo M (Medio, per livelli quadro)",47,null,{"$f":"B12*C12","v":0},null,{"$f":"D12+E12","v":0}]
["spese di personale tipo B (Basso, per livelli di impiegato/operaio)",30,null,0,null,0]
["Totale a) R&S (SS)",null,null,{"$f":"SUM(D11:D13)","v":0},{"$f":"SUM(E11:E13)","v":0},{"$f":"SUM(D14:E14)","v":0}]
["a)  Progetto di Innovazione :Spese personale (attività Sviluppo Sperimentale )","Costo Oraro","N° Ore","Costo ammissibile"]
["spese di personale tipo A (Alto, per livelli dirigenziali",83,null,{"$f":"B16*C16","v":0},null,{"$f":"D16+E16","v":0}]
["spese di personale tipo M (Medio, per livelli quadro)",47,null,{"$f":"B17*C17","v":0},null,{"$f":"D17+E17","v":0}]
["spese di personale tipo B (Basso, per livelli di impiegato/operaio)",30,null,0,null,0]
["Totale a) Innovazione (SS)",null,null,{"$f":"SUM(D16:D18)","v":0},{"$f":"SUM(E16:E18)","v":0},{"$f":"SUM(F16:F18)","v":0}]
["Totale A (a)  = totale spese personale",null,null,{"$f":"D9+D14+D19","v":0},{"$f":"E9+E14+E19","v":0},{"$f":"SUM(D20:E20)","v":0}]
["b) Progetto R&S :  Strumentazione e attrezzature (attività Ricerca Industriale )",null,null,null,null,null,0.4]
[null,null,null,null,null,{"$f":"SUM(D22:E22)","v":0},null,{"$f":"IF(AND(D22>0,OR(A22=\"\",D22=\"\")), \"Inserire voce di spesa e descrizione\",\"OK\")","v":"OK"}]
[null,null,null,null,null,{"$f":"SUM(D23:E23)","v":0},null,"OK"]
[null,null,null,null,null,0,null,"OK"]
[null,null,null,null,null,0,null,"OK"]
[null,null,null,null,null,0,null,"OK"]
[null,null,null,null,null,0,null,"OK"]
["Totale b) ",null,null,{"$f":"SUM(D22:D27)","v":0},{"$f":"SUM(E22:E27)","v":0},0]
["b) Progetto R&S: Strumentazione e attrezzature (attività Sviluppo Sperimentale )"]
[null,null,null,null,null,{"$f":"SUM(D30:E30)","v":0},null,{"$f":"IF(AND(D30>0,OR(A30=\"\",D30=\"\")), \"Inserire voce di spesa e descrizione\",\"OK\")","v":"OK"}]
[null,null,null,null,null,0,null,"OK"]
[null,null,null,null,null,0,null,"OK"]
[null,null,null,null,null,0,null,"OK"]
[null,null,null,null,null,0,null,"OK"]
[null,null,null,null,null,0,null,"OK"]
["Totale b) ",null,null,{"$f":"SUM(D30:D35)","v":0},{"$f":"SUM(E30:E35)","v":0},0]
["b)   Progetto di Innovazione: Strumentazione e attrezzature (attività Sviluppo Sperimentale )",{"$f":"IF('1. Anagrafica'!A22='1. Anagrafica'!AG11,\"\",\"RI\")","v":""}]
[null,null,null,null,null,{"$f":"SUM(D38:E38)","v":0},null,{"$f":"IF(AND(D38>0,OR(A38=\"\",D38=\"\")), \"Inserire voce di spesa e descrizione\",\"OK\")","v":"OK"}]
[null,null,null,null,null,{"$f":"SUM(D39:E39)","v":0},null,"OK"]
[null,null,null,null,null,0,null,"OK"]
[null,null,null,null,null,0,null,"OK"]
[null,null,null,null,null,0,null,"OK"]
[null,null,null,null,null,0,null,"OK"]
["Totale b) ",null,null,{"$f":"SUM(D38:D43)","v":0},{"$f":"SUM(E38:E43)","v":0},0]
["c) Progetto R&S: costi per la ricerca contrattuale, le conoscenze e i brevetti acquisiti o ottenuti in licenza da fonti esterne  (attività Ricerca Industriale )"]
[null,null,null,null,null,{"$f":"SUM(D46:E46)","v":0},null,"OK"]
[null,null,null,null,null,0,null,"OK"]
[null,null,null,null,null,0,null,"OK"]
[null,null,null,null,null,0,null,"OK"]
["Totale c) ",null,null,{"$f":"SUM(D46:D49)","v":0},{"$f":"SUM(E46:E49)","v":0},{"$f":"SUM(D50:E50)","v":0}]
[" c) Progetto R&S: costi per la ricerca contrattuale, le conoscenze e i brevetti acquisiti o ottenuti in licenza da fonti esterne (attività Sviluppo Sperimentale )"]
[null,null,null,null,null,{"$f":"D52+E52","v":0},null,"OK"]
[null,null,null,null,null,{"$f":"D53+E53","v":0},null,"OK"]
[null,null,null,null,null,0,null,"OK"]
[null,null,null,null,null,0,null,"OK"]
["Totale c) ",null,null,{"$f":"SUM(D52:D55)","v":0},{"$f":"SUM(E52:E55)","v":0},{"$f":"SUM(F52:F55)","v":0}]
[" c) Progetto di Innovazione: costi per la ricerca contrattuale, le conoscenze e i brevetti acquisiti o ottenuti in licenza da fonti esterne (attività Sviluppo Sperimentale )"]
[null,null,null,null,null,{"$f":"D58+E58","v":0},null,"OK"]
[null,null,null,null,null,{"$f":"D59+E59","v":0},null,"OK"]
[null,null,null,null,null,0,null,"OK"]
[null,null,null,null,null,0,null,"OK"]
["Totale c) ",null,null,{"$f":"SUM(D58:D61)","v":0},{"$f":"SUM(E58:E61)","v":0},0]
["d) Progetto R&S: altre spese di progetto (attività Ricerca Industriale )"]
[null,null,null,null,null,{"$f":"SUM(D64:E64)","v":0},null,{"$f":"IF(AND(D64>0,OR(A64=\"\",D64=\"\")), \"Inserire voce di spesa e descrizione\",\"OK\")","v":"OK"}]
[null,null,null,null,null,0,null,{"$f":"IF(AND(D65>0,OR(A65=\"\",D65=\"\")), \"Inserire voce di spesa e descrizione\",\"OK\")","v":"OK"}]
["Totale d)",null,null,{"$f":"SUM(D64:D65)","v":0},{"$f":"SUM(E64:E65)","v":0},{"$f":"SUM(D66:E66)","v":0}]
["d) Progetto R&S: altre spese di progetto (attività Sviluppo Sperimentale )"]
[null,null,null,null,null,{"$f":"SUM(D68:E68)","v":0},null,{"$f":"IF(AND(D68>0,OR(A68=\"\",D68=\"\")), \"Inserire voce di spesa e descrizione\",\"OK\")","v":"OK"}]
[null,null,null,null,null,0,null,{"$f":"IF(AND(D69>0,OR(A69=\"\",D69=\"\")), \"Inserire voce di spesa e descrizione\",\"OK\")","v":"OK"}]
["Totale d)",null,null,{"$f":"SUM(D68:D69)","v":0},{"$f":"SUM(E68:E69)","v":0},{"$f":"SUM(D70:E70)","v":0}]
["d)Progetto di Innovazione: altre spese di progetto (attività Sviluppo Sperimentale )"]
[null,null,null,null,null,{"$f":"SUM(D72:E72)","v":0},null,{"$f":"IF(AND(D72>0,OR(A72=\"\",D72=\"\")), \"Inserire voce di spesa e descrizione\",\"OK\")","v":"OK"}]
[null,null,null,null,null,0,null,{"$f":"IF(AND(D73>0,OR(A73=\"\",D73=\"\")), \"Inserire voce di spesa e descrizione\",\"OK\")","v":"OK"}]
["Totale d)",null,null,{"$f":"SUM(D72:D73)","v":0},{"$f":"SUM(E72:E73)","v":0},{"$f":"SUM(D74:E74)","v":0}]
["e) Progetto R&S: spese generali (attività Ricerca Industriale )"]
[null,null,null,null,null,{"$f":"SUM(D76:E76)","v":0},null,{"$f":"IF(AND(D76>0,OR(A76=\"\",D76=\"\")), \"Inserire voce di spesa e descrizione\",\"OK\")","v":"OK"}]
[null,null,null,null,null,0,null,{"$f":"IF(AND(D77>0,OR(A77=\"\",D77=\"\")), \"Inserire voce di spesa e descrizione\",\"OK\")","v":"OK"}]
["Totale e)",null,null,{"$f":"SUM(D76:D77)","v":0},{"$f":"SUM(E76:E77)","v":0},{"$f":"SUM(D78:E78)","v":0}]
["e) Progetto R&S: spese generali (attività Sviluppo Sperimentale )"]
[null,null,null,null,null,{"$f":"SUM(D80:E80)","v":0},null,{"$f":"IF(AND(D80>0,OR(A80=\"\",D80=\"\")), \"Inserire voce di spesa e descrizione\",\"OK\")","v":"OK"}]
[null,null,null,null,null,0,null,{"$f":"IF(AND(D81>0,OR(A81=\"\",D81=\"\")), \"Inserire voce di spesa e descrizione\",\"OK\")","v":"OK"}]
["Totale e)",null,null,{"$f":"SUM(D80:D81)","v":0},{"$f":"SUM(E80:E81)","v":0},{"$f":"SUM(D82:E82)","v":0}]
["e)Progetto di Innovazione: spese generali (attività Sviluppo Sperimentale )"]
[null,null,null,null,null,{"$f":"SUM(D84:E84)","v":0},null,{"$f":"IF(AND(D84>0,OR(A84=\"\",D84=\"\")), \"Inserire voce di spesa e descrizione\",\"OK\")","v":"OK"}]
[null,null,null,null,null,0,null,{"$f":"IF(AND(D85>0,OR(A85=\"\",D85=\"\")), \"Inserire voce di spesa e descrizione\",\"OK\")","v":"OK"}]
["Totale e)",null,null,{"$f":"SUM(D84:D85)","v":0},{"$f":"SUM(E84:E85)","v":0},{"$f":"SUM(D86:E86)","v":0}]
["Totale B costi forfettari (b+c+d+e) (n.b. la somma non deve essere superiore al 40% del totale spese personale)",null,null,{"$f":"D86+D82+D78+D62+D56+D50+D44+D36+D28+D74+D66+D70","v":0},{"$f":"E86+E82+E78+E62+E56+E50+E44+E36+E28+E74+E66+E70","v":0},0,null,{"$f":"IF(D87<=D20*0.4,\"ok\",\"Spese in esubero\")","v":"ok"}]
["Totale progetto R&S",null,null,{"$f":"D9+D14+D28+D36+D50+D56+D78+D82+D70+D66","v":0},{"$f":"E9+E14+E28+E36+E50+E56+E78+E82+E70+E66","v":0},0]
["Totale progetto Innovazione",null,null,{"$f":"D19+D44+D62+D86+D74","v":0},{"$f":"E19+E44+E62+E86+E74","v":0},0]
["Totale progetto (Quota RI)",null,null,{"$f":"D9+D28+D50+D78+D66","v":0},{"$f":"E9+E28+E50+E78+E66","v":0},0]
["Totale progetto (Quota SS)",null,null,{"$f":"D14+D19+D36+D44+D56+D62+D82+D86+D74+D70","v":0},{"$f":"E14+E19+E36+E44+E56+E62+E82+E86+E74+E70","v":0},0]
["Totale A+B",null,null,{"$f":"D87+D20","v":0},{"$f":"E87+E20","v":0},{"$f":"SUM(D92:E92)","v":0},null,{"$f":"IF(D92>H3*0.5,\"Esubero di Spesa\",\"ok\")","v":"ok"}]

{"sheet":"5.Determinazione contributo","index":7,"n_rows":15,"n_cols":12,"rows_kept":15,"cut":false,"hidden":false,"merged":[[2,0,3,0]]}
[" Determinazione contributo"]
["Tipologia Soggetto","Categorie di spese (Investimento Produttivo)","Importo spese ammissibili  [€]","Intensità di aiuto massima applicabile [%]","Calcolo Contributo [€]","Contributo Massimo Teorico Applicabile [€]","Contributo a fondo perduto massimo concedibile 30% (ex art. 3.5.2 (a)) [€]",null,null,null,"RI","SS"]
[{"$f":"'1. Anagrafica'!A10","v":"Piccola Impresa"}," Spese di cui alle lettere a), b1-b2-b3), c) d) del par. 3.4., paragrafo 1., comma 1.1 (Art 14 GBER)",{"$f":"'4.Programma di Investimenti L1'!B4-'4.Programma di Investimenti L1'!B130","v":0},{"$f":"IF('1. Anagrafica'!A10='1. Anagrafica'!AB1,60%,IF('1. Anagrafica'!A10='1. Anagrafica'!AB2,50%,40%))","v":0.6},{"$f":"C3*D3","v":0},{"$f":"E3","v":0},{"$f":"IFERROR(IF(E3/C3>0.3,C3*0.3,E3),0)","v":0},null,null,"Piccola Impresa",0.8,0.6]
[null,"Spese di cui alle lettere e) del par. 3.4., paragrafo 1., comma 1.1 (Art 18 GBER)",{"$f":"IF('1. Anagrafica'!A10='1. Anagrafica'!AB3,0,'4.Programma di Investimenti L1'!B130)","v":0},{"$f":"IF(OR('1. Anagrafica'!A10='1. Anagrafica'!AB1,'1. Anagrafica'!A10='1. Anagrafica'!AB2),50%,0)","v":0.5},{"$f":"D4*C4","v":0},{"$f":"E4","v":0},{"$f":"IFERROR(IF(E4/C4>0.3,C4*0.3,E4),0)","v":0},null,null,"Media Impresa",0.75,0.5]
[null,null,null,null,null,null,null,null,null,"Grande impresa",0.65,0.4]
["Tipologia Soggetto","Categorie di spese (RI)","Importo spese ammissibili [€]","Intensità di aiuto massima applicabile [%]","Contributo Massimo Teorico Applicabile [€]","Contributo a fondo perduto massimo concedibile 30% (ex art. 3.5.2 (a)) [€]"]
[{"$f":"'1. Anagrafica'!A10","v":"Piccola Impresa"},"spese (quota RI) di cui all'art 3.4 par 1 comma 1.2 lett a) b) c) d) e)",{"$f":"'4.BProgR&S&I'!D90","v":0},{"$f":"IFERROR(VLOOKUP(A7,J2:L5,2,FALSE),0)","v":0.8},{"$f":"C7*D7","v":0},{"$f":"IFERROR(IF(E7/C7>0.3,C7*0.3,E7),0)","v":0}]
[]
["Tipologia Soggetto","Categorie di spese (SS)","Importo spese ammissibili [€]","Intensità di aiuto massima applicabile[%]","Contributo Massimo Teorico Applicabile [€]","Contributo a fondo perduto massimo concedibile 30% (ex art. 3.5.2 (a)) [€]"]
[{"$f":"'1. Anagrafica'!A10","v":"Piccola Impresa"},"spese (quota SS) di cui all'art 3.4 par 1 comma 1.2 lett a) b) c) d) e)",{"$f":"'4.BProgR&S&I'!D91","v":0},{"$f":"IFERROR(VLOOKUP(A7,J2:L5,3,FALSE),0)","v":0.6},{"$f":"C10*D10","v":0},{"$f":"IFERROR(IF(E10/C10>0.3,C10*0.3,E10),0)","v":0}]
[]
["Tipologia Soggetto","Importo totale investimento ammissibile [€]","Contributo Massimo Teorico Applicabile [€]","Percentuale agevolazione complessiva massima concedibile  (ex art. 3.5.2 (a) [%]","Riduzione percentuale agevolazione complessiva richiesta [%]","Percentuale agevolazione complessiva richiesta [%]","Calcolo Contributo Totale Richiesto [€]"]
[{"$f":"A7","v":"Piccola Impresa"},{"$f":"C3+C4+C7+C10","v":0},{"$f":"F3+F4+E7+E10","v":0},{"$f":"IFERROR(C15/B13,0)","v":0},null,{"$f":"D13-E13","v":0},{"$f":"B13*F13","v":0}]
[null,{"$f":"IFERROR(IF((C3+C4)/B13>0.5,\"\",\"Esubero Spesa\"),\"\")","v":""},"Contributo a fondo perduto massimo concedibile 30% (ex art. 3.5.2 (a)) [€]"]
[null,null,{"$f":"G3+G4+F7+F10","v":0}]

{"sheet":"6.Piano di copertura","index":8,"n_rows":14,"n_cols":5,"rows_kept":14,"cut":false,"hidden":false,"merged":[[10,0,10,4],[12,0,12,4],[13,0,13,4],[3,0,3,4],[4,2,4,3],[5,2,5,3],[7,2,7,3],[8,2,8,3],[9,2,9,3]]}
[" Piano di copertura"]
[]
[]
[" Prospetto fonti/impieghi"]
["Impieghi/Fabbisogni","Importi in €","Fonti di copertura",null,"Importi in €"]
["Spese agevolabili",{"$f":"'4.Programma di Investimenti L1'!B4+'4.BProgR&S&I'!D4","v":0},"Contributo richiesto ",null,{"$f":"'5.Determinazione contributo'!G13","v":0}]
["Spese non agevolabili (eventuale)",{"$f":"'4.Programma di Investimenti L1'!C4+'4.BProgR&S&I'!E4","v":0},"Risorse proprie"]
["IVA",null,"Finanziamento esterno"]
["Altro",null,"Altro",null,0]
["Totale Impieghi",{"$f":"SUM(B6:B9)","v":0},"Totale Fonti di copertura",null,{"$f":"SUM(E6:E9)","v":0}]
[{"$f":"IF(B10<=E10,\"OK\",\"NON OK\")","v":"OK"}]
[]
["Descrizione delle modalità di apporto dei mezzi propri e di ricorso ad altre fonti"]
["Illustrare   le   modalità  attraverso   cui  si   farà   fronte   al   finanziamento   delle   spese   non  coperte   da agevolazione."]

{"sheet":"7.Criteri  di valutazione","index":9,"n_rows":82,"n_cols":5,"rows_kept":82,"cut":false,"hidden":false,"merged":[[40,1,58,1],[78,0,78,4],[81,0,81,4],[75,0,75,4],[76,0,76,4],[77,0,77,4],[72,0,72,1],[73,0,73,1],[74,0,74,1],[73,3,73,4],[31,0,31,4],[32,0,39,0],[32,1,39,1],[32,3,39,3],[64,0,70,0],[47,3,58,3],[59,0,59,2],[59,3,59,4],[64,1,70,1],[62,0,62,4],[63,0,63,4],[64,3,70,3],[64,4,70,4],[32,4,58,4],[40,3,46,3],[40,0,58,0],[28,3,30,3],[20,0,20,4],[28,0,30,0],[28,1,30,1],[21,0,27,0],[21,1,27,1],[21,3,27,3],[21,4,30,4],[1,0,1,1],[1,3,1,4],[2,0,2,4],[3,0,13,0],[3,1,13,1],[3,3,10,3],[3,4,13,4],[11,3,13,3],[14,0,14,4],[15,4,19,4],[17,0,19,0],[17,1,19,1],[17,3,19,3],[15,0,16,0],[15,1,16,1],[15,3,16,3]]}
[]
["Criteri di valutazione",null,"Parametro","Punteggio Massimo"]
["A. Efficacia"]
["A1","Capacità degli interventi di contribuire al perseguimento dei risultati attesi del Programma e delle finalità dell’Azione specifica e chiara esplicitazione degli obiettivi e delle finalità proposti","A1.1) Capacità del progetto di migliorare il posizionamento competitivo dell’impresa nel sistema turistico attraverso:",15,25]
[null,null,"      - l’introduzione di innovazioni di prodotto, di processo, nonché negli assetti organizzativi e gestionali "]
[null,null,"      - investimenti capaci di ridurre l’impronta ambientale dei processi di produzione"]
[]
[]
[]
[]
[null,null,"Il punteggio è assegnato sulla base delle indicazioni fornite in merito dall’impresa proponente all’interno del formulario , con l’espressione di un giudizio da parte della Commissione di valutazione, con le modalità previste dall’Avviso."]
[null,null,"            A1.2) Programma ricadente in una traiettoria tecnologica delle aree di innovazione RIS 3 Calabria 21/27 (di cui a DGr 144/2023 e s.m.i.)",10]
[]
[null,null,"Il punteggio è assegnato sulla base delle indicazioni fornite in merito dall’impresa proponente all’interno del formulario,  con le modalità previste dall’Avviso."]
["B. Efficienza"]
["B1","Sostenibilità economica e finanziaria del progetto in termini di economicità della proposta (in rapporto all’importo del sostegno, alle attività intraprese e al conseguimento degli obiettivi)","B1.1) Quota di Cofinanziamento privato. Percentuale di agevolazione richiesta inferiore a quella massima concedibile: vengono attribuiti 2 punti per ogni punto percentuale di contributo a fondo perduto richiesto in meno rispetto alla percentuale massima concedibile, fino ad un massimo di 10 punti",null,20]
[null,null,{"$f":"'5.Determinazione contributo'!E13","v":0}]
["B2","Qualità delle soluzioni organizzative e metodologiche individuate per la realizzazione degli interventi connesse al piano di lavoro, alla valutazione dei rischi, alla adeguatezza delle risorse attribuite alle singole componenti progettuali","B2.1) Programmi di Investimento realizzati a partire dai risultati previsti da uno o più dei seguenti documenti:\n-\tStudio di fattibilità tecnico-economica\n-\tProgetti di innovazione e trasferimento tecnologico\nIl punteggio viene assegnato in presenza di almeno uno dei suddetti documenti, che siano redatti e sottoscritti da tecnico abilitato, iscritto al pertinente albo professionale, e che abbiano contenuto attinente al progetto presentato.  Le informazioni relative al soddisfacimento del criterio devono essere documentate, allegando alla Domanda di Accesso lo studio/progetto redatto e sottoscritto per come previsto.",10]
[]
[]
["C. Utilità"]
["C1","Grado di innovazione introdotte (in termini di processo, prodotto, assetti organizzativi e gestionali)","C1.1) Capacità del Programma di Investimento di favorire lo sviluppo occupazionale. L’indicatore è soddisfatto nel caso in cui l’impresa si impegni, all’interno del Modulo di Domanda e del formulario di cui agli Allegati 1 e 2 al presente Avviso, ad assumere nuovi addetti da impiegare nell’unità operativa oggetto di intervento. I nuovi addetti devono essere incrementali rispetto al numero di addetti dell’impresa al momento della presentazione della Domanda di Accesso fatto salvo i casi di riduzione dovuti a dimissioni volontarie, pensionamenti per limiti d’età, licenziamenti per giusta causa (e non per riduzione del personale). L’incremento occupazionale deve essere garantito per almeno 12 mesi dalla data di completamento (data ultimo titolo di spesa) del Programma di Investimento. Tale incremento deve essere correlato direttamente ed esclusivamente all’intervento oggetto delle agevolazioni\n\nSono assegnati 5 punti per ogni assunzione prevista (fino a un massimo di 20 punti).\nLa comunicazione relativa all’assunzione dei nuovi addetti va trasmessa unitamente alla rendicontazione finale delle spese.",20,30]
[null,null,"Numero di addetti alla presentazione della domada nell'unità operativa:"]
[]
[null,null,"Numero di addetti post intervento nell'unità operativa:"]
[]
[null,null,"Numero nuovi addetti:"]
[null,null,{"$f":"C26-C24","v":0}]
["C2","Grado di innovazione introdotte (in termini di processo, prodotto, assetti organizzativi e gestionali)","C2.1)Grado di rilevanza e potenziale innovativo del progetto presentato, in termini di avanzamento tecnologico (innovazione di prodotto/processo) per l’impresa proponente.\n\nIl punteggio è assegnato sulla base delle indicazioni fornite in merito dall’impresa proponente all’interno del formulario, con l’espressione di un giudizio da parte della Commissione di valutazione, con le modalità previste dall'Avviso\n",10]
[]
[]
["D. Sostenibilità"]
["D1","Adeguatezza del rapporto fra i costi da sostenere per l’attuazione dell’investimento","D1.1) Rapporto tra costi del progetto riferiti a “Progetti di Innovazione” (di cui al par. 3.4.1, punto 1.2) e costi del progetto riferiti ad “Investimenti Produttivi” (di cui al par. 3.4.1, punto 1.1)\n",10,25]
[null,null,"Il punteggio sarà attribuito come segue:"]
[null,null,"se R è inferiore o pari a 0,3 = punti 10"]
[null,null,"se R è superiore a 0,3 e inferiore o pari a 0,4 = punti 5"]
[null,null,"se R è superiore a 0,4 e inferiore o pari a 0,5 = punti 0"]
[]
[null,null,"R"]
[null,null,{"$f":"IFERROR('4.BProgR&S&I'!D4/'4.Programma di Investimenti L1'!B4,\"\")","v":""}]
["D2","Contributo alla transizione ecologica e digitale ","D2.1) Presenza nel progetto di soluzioni per la transizione ecologica. ",7.5]
[null,null,"Gli interventi dovranno riguardare una o più delle seguenti tipologie:"]
[null,null,"       - realizzazione di prodotti e/o servizi improntati sull'ecodesign e sulla sostenibilità "]
[null,null,"      - strumenti e soluzioni per la realizzazione di prodotti e/o servizi a basso impatto ambientale"]
[null,null,"       - realizzazione di attività di sviluppo e prototipazione sperimentale, finalizzate all’ecodesign dei prodotti e al recupero, riuso, riciclo di prodotti "]
[]
[null,null,"Il punteggio è assegnato sulla base delle indicazioni fornite in merito dall’impresa proponente all’interno del formulario, in modalità on-off"]
[null,null,"D2.2) Presenza nel Programma di Investimento di soluzioni per la transizione digitale. Sarà valutata la presenza  di interventi e soluzioni tecnologico-digitali innovative che utilizzano una o più delle seguenti tecnologie",7.5]
[null,null,"Gli interventi dovranno riguardare una o più delle seguenti tipologie:"]
[null,null,"       - AI, Big data e analytics"]
[null,null,"       - Internet of things (IOT)"]
[null,null,"      - Cloud computing"]
[null,null,"      - Autonomous Robotics"]
[null,null,"      - Immersive technologies (RA, RV, 3D)"]
[null,null,"      - Simulation e sistemi cyber-fisici"]
[null,null,"      - System integration"]
[null,null,"      - Cybersecurity"]
[]
[null,null,"Il punteggio è assegnato sulla base delle indicazioni fornite in merito dall’impresa proponente e documentato per come indicato in Avviso, con modalità on-off"]
["Totale complessivo",null,null,100]
[]
[]
["Punteggio aggiuntivo "]
["E. Punteggio aggiuntivo"]
["E1","Premialità per le imprese resistenti alla criminalità organizzata e per il superamento della discriminazione di genere e incentivi ","         E1.1 Premialità per le imprese resistenti alla criminalità organizzata in applicazione della Legge regionale n. 51/2023","10% del parametro numerico finale",10]
[null,null,"Ai fini dell’attribuzione del punteggio si farà riferimento a quanto documentato sul punto come da Avviso"]
[]
[]
[null,null,"I punteggi E1.1, non contribuisce ai fini del raggiungimento minimo di 60/100 punti"]
[]
[]
[]
["Il sottoscritto"]
["il qualità di legale rappresentante dell'impresa",null,{"$f":"'1. Anagrafica'!A4","v":0},{"$f":"'1. Anagrafica'!A6","v":0}]
["Codice fiscale",null,{"$f":"'1. Anagrafica'!A8","v":0}]
["consapevole delle responsabilità penali cui può andare incontro in caso di dichiarazioni mendaci, ai sensi e per gli effetti dell’art. 76 del D.P.R. 28 dicembre 2000, n. 445,"]
["DICHIARA"]
[" - che le informazioni riportate nel presente Formulario sono veritiere e, ove riferite a elementi previsionali, basate su stime ragionevoli;\n - che i valori esposti relativi alla spesa ammissibile, per la quale il contributo è richiesto, si basa su: \ni) preventivi predisposti nella disponibilità del richiedente (per investimenti produttivi) \nii) su stime ragionevoli effettuate dal richiedente medesimo (per progetti di innovazione)"]
["RICHIEDE"]
[null,"un contributo pari a €: ",{"$f":"'5.Determinazione contributo'!G13","v":0}]
[]
["Firma digitale Legale Rappresentante"]